[Event "Titled Tuesday Blitz June 13 Early 2023"]
[White "Pastar, Slaven"]
[Black "Vignesh N R"]
[WhiteFideId "14402718"]
[BlackFideId "25012215"]
[WhiteElo "2219"]
[BlackElo "2415"]
[Result "1/2-1/2"]
[Round "11"]
[TimeControl "180+2"]
[Date "2023.06.13"]
[WhiteClock "0:00:15"]
[BlackClock "0:00:41"]
[Board "28"]

1. b3 {[%clk 0:03:00]}  e5 {[%clk 0:02:57]} 2. Bb2 {[%clk 0:03:01]}  Nc6 {[%clk 0:02:57]} 3. Nf3 {[%clk 0:03:02]}  e4 {[%clk 0:02:52]} 4. Nd4 {[%clk 0:03:02]}  Nf6 {[%clk 0:02:51]} 5. e3 {[%clk 0:03:02]}  Nxd4 {[%clk 0:02:48]} 6. Bxd4 {[%clk 0:03:02]}  Be7 {[%clk 0:02:48]} 7. c4 {[%clk 0:03:02]}  O-O {[%clk 0:02:48]} 8. Nc3 {[%clk 0:02:57]}  Re8 {[%clk 0:02:48]} 9. Rc1 {[%clk 0:02:52]}  c6 {[%clk 0:02:43]} 10. c5 {[%clk 0:02:44]}  d5 {[%clk 0:02:39]} 11. cxd6 {[%clk 0:02:43]}  Bxd6 {[%clk 0:02:38]} 12. Qc2 {[%clk 0:02:39]}  Bf5 {[%clk 0:02:34]} 13. d3 {[%clk 0:02:14]}  exd3 {[%clk 0:02:18]} 14. Bxd3 {[%clk 0:02:12]}  Bxd3 {[%clk 0:02:17]} 15. Qxd3 {[%clk 0:02:12]}  Bb4 {[%clk 0:01:58]} 16. Qc4 {[%clk 0:01:56]}  Nd5 {[%clk 0:01:40]} 17. O-O {[%clk 0:01:52]}  b5 {[%clk 0:01:34]} 18. Qe2 {[%clk 0:01:07]}  Nf4 {[%clk 0:01:05]} 19. Qg4 {[%clk 0:00:59]}  Ne6 {[%clk 0:01:04]} 20. Bxg7 {[%clk 0:00:47]}  Nxg7 {[%clk 0:00:56]} 21. Qxb4 {[%clk 0:00:45]}  Qg5 {[%clk 0:00:56]} 22. Qf4 {[%clk 0:00:41]}  Qxf4 {[%clk 0:00:55]} 23. exf4 {[%clk 0:00:42]}  Ne6 {[%clk 0:00:54]} 24. g3 {[%clk 0:00:41]}  Nd4 {[%clk 0:00:54]} 25. Kg2 {[%clk 0:00:39]}  a5 {[%clk 0:00:45]} 26. Rfd1 {[%clk 0:00:40]}  Ne2 {[%clk 0:00:40]} 27. Nxe2 {[%clk 0:00:39]}  Rxe2 {[%clk 0:00:41]} 28. Rxc6 {[%clk 0:00:32]}  Rxa2 {[%clk 0:00:41]} 29. Rc5 {[%clk 0:00:25]}  b4 {[%clk 0:00:41]} 30. Rdd5 {[%clk 0:00:23]}  Ra3 {[%clk 0:00:38]} 31. h4 {[%clk 0:00:21]}  Rxb3 {[%clk 0:00:36]} 32. Rxa5 {[%clk 0:00:21]}  Rxa5 {[%clk 0:00:37]} 33. Rxa5 {[%clk 0:00:22]}  Rb1 {[%clk 0:00:37]} 34. Rb5 {[%clk 0:00:21]}  b3 {[%clk 0:00:37]} 35. h5 {[%clk 0:00:21]}  h6 {[%clk 0:00:38]} 36. Kf3 {[%clk 0:00:20]}  b2 {[%clk 0:00:36]} 37. Kg4 {[%clk 0:00:19]}  Kg7 {[%clk 0:00:34]} 38. Rb6 {[%clk 0:00:18]}  Kg8 {[%clk 0:00:28]} 39. Kf5 {[%clk 0:00:18]}  Kg7 {[%clk 0:00:28]} 40. Rb7 {[%clk 0:00:15]}  Rh1 {[%clk 0:00:27]} 41. Rxb2 {[%clk 0:00:13]}  Rxh5+ {[%clk 0:00:27]} 42. Kg4 {[%clk 0:00:12]}  Ra5 {[%clk 0:00:28]} 43. Re2 {[%clk 0:00:12]}  Rb5 {[%clk 0:00:28]} 44. Re5 {[%clk 0:00:11]}  Rb2 {[%clk 0:00:28]} 45. Kf3 {[%clk 0:00:11]}  Rb3+ {[%clk 0:00:28]} 46. Re3 {[%clk 0:00:11]}  Rb5 {[%clk 0:00:28]} 47. g4 {[%clk 0:00:12]}  Ra5 {[%clk 0:00:28]} 48. f5 {[%clk 0:00:12]}  h5 {[%clk 0:00:27]} 49. gxh5 {[%clk 0:00:09]}  Rxf5+ {[%clk 0:00:27]} 50. Kg4 {[%clk 0:00:09]}  Rxf2 {[%clk 0:00:27]} 51. Rh3 {[%clk 0:00:07]}  Kh6 {[%clk 0:00:26]} 52. Kg3 {[%clk 0:00:06]}  Rf5 {[%clk 0:00:26]} 53. Rh2 {[%clk 0:00:05]}  Rxh5 {[%clk 0:00:25]} 54. Rxh5+ {[%clk 0:00:05]}  Kxh5 {[%clk 0:00:26]} 55. Kf4 {[%clk 0:00:05]}  Kg6 {[%clk 0:00:23]} 56. Kg4 {[%clk 0:00:05]}  Kf6 {[%clk 0:00:23]} 57. Kf4 {[%clk 0:00:06]}  Ke6 {[%clk 0:00:23]} 58. Ke4 {[%clk 0:00:06]}  Ke7 {[%clk 0:00:24]} 59. Ke5 {[%clk 0:00:06]}  Kf8 {[%clk 0:00:24]} 60. Kf6 {[%clk 0:00:07]}  Kg8 {[%clk 0:00:24]} 61. Kf5 {[%clk 0:00:07]}  Kh7 {[%clk 0:00:25]} 62. Kf6 {[%clk 0:00:07]}  Kg8 {[%clk 0:00:25]} 63. Kf5 {[%clk 0:00:07]}  Kg7 {[%clk 0:00:26]} 64. Kg5 {[%clk 0:00:08]}  f6+ {[%clk 0:00:27]} 65. Kf5 {[%clk 0:00:09]}  Kf7 {[%clk 0:00:28]} 66. Kf4 {[%clk 0:00:09]}  Ke6 {[%clk 0:00:29]} 67. Ke4 {[%clk 0:00:10]}  f5+ {[%clk 0:00:29]} 68. Kf4 {[%clk 0:00:11]}  Kf6 {[%clk 0:00:30]} 69. Kf3 {[%clk 0:00:11]}  Ke5 {[%clk 0:00:31]} 70. Ke3 {[%clk 0:00:12]}  Kf6 {[%clk 0:00:31]} 71. Kf4 {[%clk 0:00:12]}  Kg6 {[%clk 0:00:32]} 72. Kf3 {[%clk 0:00:12]}  Kg5 {[%clk 0:00:33]} 73. Kg3 {[%clk 0:00:12]}  f4+ {[%clk 0:00:33]} 74. Kf3 {[%clk 0:00:13]}  Kf5 {[%clk 0:00:34]} 75. Kf2 {[%clk 0:00:13]}  Ke4 {[%clk 0:00:35]} 76. Ke2 {[%clk 0:00:13]}  f3+ {[%clk 0:00:36]} 77. Kf2 {[%clk 0:00:14]}  Kf4 {[%clk 0:00:37]} 78. Kf1 {[%clk 0:00:14]}  Kg4 {[%clk 0:00:37]} 79. Kf2 {[%clk 0:00:14]}  Kf4 {[%clk 0:00:38]} 80. Kf1 {[%clk 0:00:14]}  Kf5 {[%clk 0:00:38]} 81. Kf2 {[%clk 0:00:14]}  Ke4 {[%clk 0:00:39]} 82. Kf1 {[%clk 0:00:14]}  Ke3 {[%clk 0:00:40]} 83. Ke1 {[%clk 0:00:14]}  Kd3 {[%clk 0:00:39]} 84. Kf2 {[%clk 0:00:14]}  Ke4 {[%clk 0:00:40]} 85. Kf1 {[%clk 0:00:15]}  Kf5 {[%clk 0:00:40]} 86. Kf2 {[%clk 0:00:15]}  Kg4 {[%clk 0:00:40]} 87. Kf1 {[%clk 0:00:15]}  Kh3 {[%clk 0:00:39]} 88. Kf2 {[%clk 0:00:15]}  Kg4 {[%clk 0:00:40]} 89. Kf1 {[%clk 0:00:16]}  Kg3 {[%clk 0:00:40]} 90. Kg1 {[%clk 0:00:16]}  Kh3 {[%clk 0:00:41]} 91. Kf2 {[%clk 0:00:15]}  Kg4 {[%clk 0:00:41]} 1/2-1/2


[Site "https://www.chess.com"]

[Event "Titled Tuesday Blitz June 13 Early 2023"]
[White "Rahman, Masruri"]
[Black "Budrewicz, Krzysztof"]
[WhiteFideId "7101163"]
[BlackFideId "1127950"]
[WhiteElo "2256"]
[BlackElo "2230"]
[Result "1-0"]
[Round "11"]
[TimeControl "180+2"]
[Date "2023.06.13"]
[WhiteClock "0:00:46"]
[BlackClock "0:01:16"]
[Board "29"]

1. d4 {[%clk 0:03:00]}  Nf6 {[%clk 0:02:58]} 2. Bf4 {[%clk 0:03:01]}  g6 {[%clk 0:02:56]} 3. Nc3 {[%clk 0:03:00]}  d6 {[%clk 0:02:55]} 4. e4 {[%clk 0:03:00]}  Bg7 {[%clk 0:02:55]} 5. Qd2 {[%clk 0:03:00]}  O-O {[%clk 0:02:56]} 6. O-O-O {[%clk 0:02:58]}  a6 {[%clk 0:02:53]} 7. Bh6 {[%clk 0:02:57]}  b5 {[%clk 0:02:51]} 8. f3 {[%clk 0:02:56]}  Nbd7 {[%clk 0:02:50]} 9. e5 {[%clk 0:02:46]}  Ne8 {[%clk 0:02:46]} 10. h4 {[%clk 0:02:45]}  e6 {[%clk 0:02:09]} 11. h5 {[%clk 0:02:36]}  Bxh6 {[%clk 0:02:07]} 12. Qxh6 {[%clk 0:02:37]}  g5 {[%clk 0:02:08]} 13. Bd3 {[%clk 0:02:23]}  f5 {[%clk 0:02:03]} 14. exf6 {[%clk 0:02:04]}  Nexf6 {[%clk 0:01:58]} 15. Nh3 {[%clk 0:02:02]}  Qe7 {[%clk 0:01:56]} 16. Nxg5 {[%clk 0:01:59]}  Nb6 {[%clk 0:01:53]} 17. Rde1 {[%clk 0:01:57]}  b4 {[%clk 0:01:46]} 18. Nce4 {[%clk 0:01:56]}  Nbd5 {[%clk 0:01:46]} 19. Nxf6+ {[%clk 0:01:51]}  Nxf6 {[%clk 0:01:45]} 20. Bf5 {[%clk 0:01:40]}  e5 {[%clk 0:01:42]} 21. dxe5 {[%clk 0:01:10]}  dxe5 {[%clk 0:01:39]} 22. Rxe5 {[%clk 0:01:00]}  Qg7 {[%clk 0:01:25]} 23. Qxg7+ {[%clk 0:00:54]}  Kxg7 {[%clk 0:01:25]} 24. Re7+ {[%clk 0:00:52]}  Kg8 {[%clk 0:01:23]} 25. Bxh7+ {[%clk 0:00:46]}  Nxh7 {[%clk 0:01:22]} 26. Nxh7 {[%clk 0:00:47]}  Bf5 {[%clk 0:01:16]} 27. Nxf8 {[%clk 0:00:46]} 1-0


[Site "https://www.chess.com"]

[Event "Titled Tuesday Blitz June 13 Early 2023"]
[White "Gontcharov, Vladislav"]
[Black "Weetik, Vjacheslav"]
[WhiteFideId "4123492"]
[BlackFideId "4153472"]
[WhiteElo "2420"]
[BlackElo "2469"]
[Result "0-1"]
[Round "11"]
[TimeControl "180+2"]
[Date "2023.06.13"]
[WhiteClock "0:00:00"]
[BlackClock "0:00:08"]
[Board "30"]

1. d4 {[%clk 0:03:00]}  Nf6 {[%clk 0:02:59]} 2. c4 {[%clk 0:03:00]}  g6 {[%clk 0:02:59]} 3. Nc3 {[%clk 0:02:59]}  Bg7 {[%clk 0:02:59]} 4. Nf3 {[%clk 0:02:59]}  d6 {[%clk 0:02:59]} 5. Bg5 {[%clk 0:02:59]}  h6 {[%clk 0:02:59]} 6. Bh4 {[%clk 0:02:59]}  g5 {[%clk 0:03:00]} 7. Bg3 {[%clk 0:02:59]}  Nh5 {[%clk 0:03:00]} 8. e3 {[%clk 0:02:59]}  e6 {[%clk 0:03:00]} 9. Be2 {[%clk 0:02:51]}  Nd7 {[%clk 0:02:55]} 10. Nd2 {[%clk 0:02:50]}  Nxg3 {[%clk 0:02:54]} 11. hxg3 {[%clk 0:02:51]}  Qe7 {[%clk 0:02:45]} 12. Qc2 {[%clk 0:02:49]}  a6 {[%clk 0:02:40]} 13. Bf3 {[%clk 0:02:44]}  c5 {[%clk 0:02:38]} 14. Nb3 {[%clk 0:02:37]}  O-O {[%clk 0:02:24]} 15. Rd1 {[%clk 0:02:28]}  Rb8 {[%clk 0:02:15]} 16. O-O {[%clk 0:02:18]}  b6 {[%clk 0:01:56]} 17. Rd2 {[%clk 0:02:11]}  f5 {[%clk 0:01:54]} 18. Rfd1 {[%clk 0:02:01]}  Nf6 {[%clk 0:01:52]} 19. a4 {[%clk 0:01:46]}  Bd7 {[%clk 0:01:18]} 20. a5 {[%clk 0:01:44]}  cxd4 {[%clk 0:00:54]} 21. Nxd4 {[%clk 0:01:29]}  Rfc8 {[%clk 0:00:54]} 22. axb6 {[%clk 0:01:27]}  Rxb6 {[%clk 0:00:51]} 23. b3 {[%clk 0:01:26]}  h5 {[%clk 0:00:39]} 24. Qd3 {[%clk 0:01:05]}  Be8 {[%clk 0:00:34]} 25. Ra1 {[%clk 0:00:52]}  Bg6 {[%clk 0:00:33]} 26. Rda2 {[%clk 0:00:48]}  Kh7 {[%clk 0:00:09]} 27. Rxa6 {[%clk 0:00:46]}  Rxa6 {[%clk 0:00:10]} 28. Rxa6 {[%clk 0:00:46]}  g4 {[%clk 0:00:10]} 29. Be2 {[%clk 0:00:42]}  f4 {[%clk 0:00:08]} 30. Qd2 {[%clk 0:00:23]}  fxg3 {[%clk 0:00:07]} 31. fxg3 {[%clk 0:00:23]}  Nd7 {[%clk 0:00:08]} 32. Ra7 {[%clk 0:00:20]}  Qe8 {[%clk 0:00:08]} 33. Bd3 {[%clk 0:00:19]}  Nc5 {[%clk 0:00:08]} 34. Bxg6+ {[%clk 0:00:16]}  Qxg6 {[%clk 0:00:09]} 35. Nce2 {[%clk 0:00:15]}  Ne4 {[%clk 0:00:08]} 36. Qd3 {[%clk 0:00:13]}  Rf8 {[%clk 0:00:09]} 37. Nf4 {[%clk 0:00:12]}  Rxf4 {[%clk 0:00:09]} 38. gxf4 {[%clk 0:00:12]}  g3 {[%clk 0:00:09]} 39. Nxe6 {[%clk 0:00:11]}  Qxe6 {[%clk 0:00:09]} 40. Qd5 {[%clk 0:00:05]}  Qxd5 {[%clk 0:00:09]} 41. cxd5 {[%clk 0:00:05]}  Kg6 {[%clk 0:00:08]} 42. b4 {[%clk 0:00:05]}  Nc3 {[%clk 0:00:08]} 43. Kf1 {[%clk 0:00:05]}  h4 {[%clk 0:00:08]} 44. Rd7 {[%clk 0:00:03]}  Bf8 {[%clk 0:00:07]} 45. Rc7 {[%clk 0:00:03]}  Nxd5 {[%clk 0:00:06]} 46. Rc6 {[%clk 0:00:03]}  Nxe3+ {[%clk 0:00:07]} 47. Ke2 {[%clk 0:00:02]}  Nxg2 {[%clk 0:00:07]} 48. Kf3 {[%clk 0:00:03]}  Ne1+ {[%clk 0:00:07]} 49. Ke2 {[%clk 0:00:01]}  g2 {[%clk 0:00:07]} 50. Kf2 {[%clk 0:00:00]}  h3 {[%clk 0:00:08]} 0-1


[Site "https://www.chess.com"]

[Event "Titled Tuesday Blitz June 13 Early 2023"]
[White "Shuvalova, Polina"]
[Black "Sowul, Bartosz"]
[WhiteFideId "24171760"]
[BlackFideId "1137590"]
[WhiteElo "2281"]
[BlackElo "2188"]
[Result "0-1"]
[Round "11"]
[TimeControl "180+2"]
[Date "2023.06.13"]
[WhiteClock "0:00:11"]
[BlackClock "0:00:18"]
[Board "32"]

1. e4 {[%clk 0:03:00]}  c5 {[%clk 0:02:57]} 2. Nf3 {[%clk 0:03:00]}  d6 {[%clk 0:02:57]} 3. Bb5+ {[%clk 0:03:00]}  Nd7 {[%clk 0:02:57]} 4. O-O {[%clk 0:02:59]}  a6 {[%clk 0:02:56]} 5. Bxd7+ {[%clk 0:02:58]}  Bxd7 {[%clk 0:02:57]} 6. d4 {[%clk 0:02:58]}  cxd4 {[%clk 0:02:58]} 7. Qxd4 {[%clk 0:02:58]}  Nf6 {[%clk 0:02:58]} 8. Bg5 {[%clk 0:02:59]}  e6 {[%clk 0:02:58]} 9. c4 {[%clk 0:02:55]}  Be7 {[%clk 0:02:58]} 10. Nc3 {[%clk 0:02:53]}  O-O {[%clk 0:02:56]} 11. Rad1 {[%clk 0:02:51]}  Bc6 {[%clk 0:02:53]} 12. Rfe1 {[%clk 0:02:49]}  Qa5 {[%clk 0:02:53]} 13. Bd2 {[%clk 0:02:38]}  Qh5 {[%clk 0:02:52]} 14. h3 {[%clk 0:02:37]}  b5 {[%clk 0:02:43]} 15. cxb5 {[%clk 0:02:34]}  axb5 {[%clk 0:02:42]} 16. a3 {[%clk 0:02:25]}  Qc5 {[%clk 0:02:19]} 17. Qd3 {[%clk 0:02:18]}  Rfd8 {[%clk 0:02:03]} 18. Be3 {[%clk 0:02:15]}  Qc4 {[%clk 0:02:01]} 19. Nd4 {[%clk 0:02:05]}  Qxd3 {[%clk 0:01:34]} 20. Rxd3 {[%clk 0:02:05]}  Bxe4 {[%clk 0:01:33]} 21. Nxe4 {[%clk 0:02:03]}  Nxe4 {[%clk 0:01:34]} 22. Nxb5 {[%clk 0:02:03]}  Rdb8 {[%clk 0:01:30]} 23. Bd4 {[%clk 0:01:02]}  d5 {[%clk 0:01:07]} 24. f3 {[%clk 0:00:55]}  Nc5 {[%clk 0:00:55]} 25. Bxc5 {[%clk 0:00:49]}  Bxc5+ {[%clk 0:00:56]} 26. Nd4 {[%clk 0:00:49]}  Ra4 {[%clk 0:00:47]} 27. b4 {[%clk 0:00:46]}  Bxd4+ {[%clk 0:00:47]} 28. Rxd4 {[%clk 0:00:46]}  Rxa3 {[%clk 0:00:47]} 29. Rb1 {[%clk 0:00:46]}  Rb5 {[%clk 0:00:43]} 30. Kf2 {[%clk 0:00:45]}  g6 {[%clk 0:00:42]} 31. h4 {[%clk 0:00:45]}  h5 {[%clk 0:00:42]} 32. Rd2 {[%clk 0:00:44]}  Ra4 {[%clk 0:00:41]} 33. Rdb2 {[%clk 0:00:43]}  Kg7 {[%clk 0:00:41]} 34. Rb3 {[%clk 0:00:43]}  Kf6 {[%clk 0:00:41]} 35. R1b2 {[%clk 0:00:44]}  Ke5 {[%clk 0:00:42]} 36. Ke3 {[%clk 0:00:45]}  d4+ {[%clk 0:00:39]} 37. Kd3 {[%clk 0:00:44]}  Kd5 {[%clk 0:00:40]} 38. f4 {[%clk 0:00:44]}  Ra1 {[%clk 0:00:39]} 39. Re2 {[%clk 0:00:41]}  f6 {[%clk 0:00:29]} 40. Rbb2 {[%clk 0:00:33]}  Ra4 {[%clk 0:00:24]} 41. Rec2 {[%clk 0:00:16]}  Raxb4 {[%clk 0:00:21]} 42. Rxb4 {[%clk 0:00:17]}  Rxb4 {[%clk 0:00:22]} 43. Rc8 {[%clk 0:00:17]}  Rb3+ {[%clk 0:00:22]} 44. Ke2 {[%clk 0:00:17]}  e5 {[%clk 0:00:22]} 45. fxe5 {[%clk 0:00:17]}  fxe5 {[%clk 0:00:23]} 46. Rg8 {[%clk 0:00:17]}  Ke4 {[%clk 0:00:23]} 47. Rxg6 {[%clk 0:00:17]}  Rb2+ {[%clk 0:00:23]} 48. Ke1 {[%clk 0:00:17]}  d3 {[%clk 0:00:23]} 49. Rg5 {[%clk 0:00:13]}  Kd4 {[%clk 0:00:19]} 50. g4 {[%clk 0:00:11]}  e4 {[%clk 0:00:18]} 51. gxh5 {[%clk 0:00:11]}  e3 {[%clk 0:00:18]} 52. Rg4+ {[%clk 0:00:11]}  Kc3 {[%clk 0:00:19]} 53. Kf1 {[%clk 0:00:12]}  Rb1+ {[%clk 0:00:17]} 54. Kg2 {[%clk 0:00:12]}  e2 {[%clk 0:00:18]} 55. Re4 {[%clk 0:00:12]}  e1=Q {[%clk 0:00:17]} 56. Rxe1 {[%clk 0:00:12]}  Rxe1 {[%clk 0:00:18]} 57. h6 {[%clk 0:00:11]}  Re6 {[%clk 0:00:18]} 0-1


[Site "https://www.chess.com"]

[Event "Titled Tuesday Blitz June 13 Early 2023"]
[White "Shubenkova, Veronika"]
[Black "Quintiliano Pinto, Renato R."]
[WhiteFideId "44124040"]
[BlackFideId "2117568"]
[WhiteElo "2060"]
[BlackElo "2459"]
[Result "1/2-1/2"]
[Round "11"]
[TimeControl "180+2"]
[Date "2023.06.13"]
[WhiteClock "0:00:05"]
[BlackClock "0:00:00"]
[Board "34"]

1. e4 {[%clk 0:03:00]}  c5 {[%clk 0:02:57]} 2. Nc3 {[%clk 0:03:01]}  Nc6 {[%clk 0:02:56]} 3. g3 {[%clk 0:03:01]}  g6 {[%clk 0:02:56]} 4. Bg2 {[%clk 0:03:01]}  Bg7 {[%clk 0:02:56]} 5. d3 {[%clk 0:03:02]}  d6 {[%clk 0:02:56]} 6. f4 {[%clk 0:03:02]}  e6 {[%clk 0:02:53]} 7. Nf3 {[%clk 0:03:02]}  Nge7 {[%clk 0:02:54]} 8. O-O {[%clk 0:03:02]}  O-O {[%clk 0:02:54]} 9. Rb1 {[%clk 0:03:02]}  Rb8 {[%clk 0:02:49]} 10. Ne2 {[%clk 0:03:01]}  b5 {[%clk 0:02:39]} 11. h3 {[%clk 0:02:59]}  b4 {[%clk 0:02:34]} 12. Be3 {[%clk 0:02:54]}  a5 {[%clk 0:02:31]} 13. g4 {[%clk 0:02:53]}  f5 {[%clk 0:02:20]} 14. Ng3 {[%clk 0:02:52]}  Qc7 {[%clk 0:01:47]} 15. Qd2 {[%clk 0:02:47]}  a4 {[%clk 0:01:25]} 16. b3 {[%clk 0:02:46]}  axb3 {[%clk 0:01:24]} 17. axb3 {[%clk 0:02:46]}  Ra8 {[%clk 0:01:05]} 18. exf5 {[%clk 0:02:43]}  exf5 {[%clk 0:01:01]} 19. gxf5 {[%clk 0:02:35]}  Nxf5 {[%clk 0:01:00]} 20. Nxf5 {[%clk 0:02:35]}  Bxf5 {[%clk 0:01:01]} 21. Nh4 {[%clk 0:02:28]}  Be6 {[%clk 0:00:56]} 22. Qe2 {[%clk 0:02:08]}  Rae8 {[%clk 0:00:42]} 23. Qf3 {[%clk 0:02:01]}  Bd4 {[%clk 0:00:22]} 24. Bf2 {[%clk 0:01:46]}  Bxf2+ {[%clk 0:00:21]} 25. Rxf2 {[%clk 0:01:44]}  Nd4 {[%clk 0:00:21]} 26. Qg3 {[%clk 0:01:43]}  Qg7 {[%clk 0:00:17]} 27. Kh1 {[%clk 0:01:40]}  Bd7 {[%clk 0:00:16]} 28. Bd5+ {[%clk 0:01:35]}  Kh8 {[%clk 0:00:15]} 29. Be4 {[%clk 0:01:33]}  Bc6 {[%clk 0:00:15]} 30. Bxc6 {[%clk 0:01:32]}  Nxc6 {[%clk 0:00:15]} 31. Rg1 {[%clk 0:01:31]}  Nd4 {[%clk 0:00:15]} 32. f5 {[%clk 0:01:30]}  g5 {[%clk 0:00:11]} 33. Qxg5 {[%clk 0:01:27]}  Qxg5 {[%clk 0:00:12]} 34. Rxg5 {[%clk 0:01:27]}  Re3 {[%clk 0:00:12]} 35. Kh2 {[%clk 0:01:25]}  Rf6 {[%clk 0:00:12]} 36. Rfg2 {[%clk 0:01:21]}  Re8 {[%clk 0:00:12]} 37. Rh5 {[%clk 0:01:15]}  h6 {[%clk 0:00:09]} 38. Ng6+ {[%clk 0:01:14]}  Kh7 {[%clk 0:00:09]} 39. Nh4 {[%clk 0:01:11]}  Re5 {[%clk 0:00:08]} 40. Rg6 {[%clk 0:00:52]}  Rxg6 {[%clk 0:00:08]} 41. fxg6+ {[%clk 0:00:49]}  Kg7 {[%clk 0:00:09]} 42. Rxe5 {[%clk 0:00:45]}  dxe5 {[%clk 0:00:09]} 43. Kg3 {[%clk 0:00:44]}  Nxc2 {[%clk 0:00:09]} 44. Kg4 {[%clk 0:00:44]}  Ne3+ {[%clk 0:00:07]} 45. Kf3 {[%clk 0:00:42]}  Nc2 {[%clk 0:00:07]} 46. Ke4 {[%clk 0:00:41]}  Na1 {[%clk 0:00:08]} 47. Kxe5 {[%clk 0:00:36]}  Nxb3 {[%clk 0:00:08]} 48. Kd5 {[%clk 0:00:35]}  Nc1 {[%clk 0:00:08]} 49. Nf5+ {[%clk 0:00:27]}  Kxg6 {[%clk 0:00:08]} 50. Nd6 {[%clk 0:00:25]}  Nxd3 {[%clk 0:00:07]} 51. Kc4 {[%clk 0:00:23]}  Ne5+ {[%clk 0:00:06]} 52. Kxc5 {[%clk 0:00:23]}  b3 {[%clk 0:00:06]} 53. Ne4 {[%clk 0:00:22]}  Kf5 {[%clk 0:00:07]} 54. Nc3 {[%clk 0:00:20]}  Kf4 {[%clk 0:00:07]} 55. Kb4 {[%clk 0:00:20]}  b2 {[%clk 0:00:08]} 56. Kb3 {[%clk 0:00:20]}  Nd3 {[%clk 0:00:08]} 57. Kc2 {[%clk 0:00:20]}  Nf2 {[%clk 0:00:09]} 58. Kxb2 {[%clk 0:00:18]}  Nxh3 {[%clk 0:00:09]} 59. Kc2 {[%clk 0:00:18]}  Ng1 {[%clk 0:00:09]} 60. Kd2 {[%clk 0:00:18]}  h5 {[%clk 0:00:08]} 61. Nd5+ {[%clk 0:00:18]}  Kf3 {[%clk 0:00:08]} 62. Ke1 {[%clk 0:00:15]}  h4 {[%clk 0:00:09]} 63. Kf1 {[%clk 0:00:16]}  Ne2 {[%clk 0:00:09]} 64. Ne7 {[%clk 0:00:07]}  h3 {[%clk 0:00:09]} 65. Ng6 {[%clk 0:00:07]}  h2 {[%clk 0:00:09]} 66. Ne5+ {[%clk 0:00:06]}  Kg3 {[%clk 0:00:09]} 67. Kxe2 {[%clk 0:00:06]}  h1=Q {[%clk 0:00:09]} 68. Nd3 {[%clk 0:00:06]}  Qg2+ {[%clk 0:00:08]} 69. Ke3 {[%clk 0:00:06]}  Qf3+ {[%clk 0:00:08]} 70. Kd4 {[%clk 0:00:07]}  Qg4+ {[%clk 0:00:07]} 71. Kd5 {[%clk 0:00:06]}  Qd7+ {[%clk 0:00:07]} 72. Ke4 {[%clk 0:00:05]}  Qe7+ {[%clk 0:00:06]} 73. Kd4 {[%clk 0:00:06]}  Kf3 {[%clk 0:00:06]} 74. Ne5+ {[%clk 0:00:06]}  Ke2 {[%clk 0:00:06]} 75. Kd5 {[%clk 0:00:05]}  Ke3 {[%clk 0:00:06]} 76. Nc4+ {[%clk 0:00:05]}  Kf4 {[%clk 0:00:06]} 77. Kd4 {[%clk 0:00:05]}  Qd7+ {[%clk 0:00:06]} 78. Kc3 {[%clk 0:00:03]}  Ke4 {[%clk 0:00:05]} 79. Nd2+ {[%clk 0:00:02]}  Kd5 {[%clk 0:00:05]} 80. Kd3 {[%clk 0:00:02]}  Qh3+ {[%clk 0:00:05]} 81. Ke2 {[%clk 0:00:02]}  Qg2+ {[%clk 0:00:05]} 82. Kd3 {[%clk 0:00:02]}  Qg3+ {[%clk 0:00:05]} 83. Kc2 {[%clk 0:00:02]}  Qf2 {[%clk 0:00:04]} 84. Kd3 {[%clk 0:00:02]}  Qd4+ {[%clk 0:00:04]} 85. Kc2 {[%clk 0:00:02]}  Qa4+ {[%clk 0:00:05]} 86. Kd3 {[%clk 0:00:03]}  Qa6+ {[%clk 0:00:04]} 87. Ke3 {[%clk 0:00:03]}  Ke5 {[%clk 0:00:03]} 88. Nf3+ {[%clk 0:00:03]}  Kf5 {[%clk 0:00:04]} 89. Nd2 {[%clk 0:00:04]}  Qh6+ {[%clk 0:00:03]} 90. Kd3 {[%clk 0:00:05]}  Kf4 {[%clk 0:00:03]} 91. Nc4 {[%clk 0:00:05]}  Qc6 {[%clk 0:00:00]} 92. Kd4 {[%clk 0:00:05]} 1/2-1/2


[Site "https://www.chess.com"]

[Event "Titled Tuesday Blitz June 13 Early 2023"]
[White "ArtemDyachuk"]
[Black "Tari, Aryan"]
[BlackFideId "1510045"]
[WhiteElo "2630"]
[BlackElo "2586"]
[Result "0-1"]
[Round "11"]
[TimeControl "180+2"]
[Date "2023.06.13"]
[WhiteClock "0:00:00"]
[BlackClock "0:01:25"]
[Board "40"]

1. Nf3 {[%clk 0:03:00]}  b6 {[%clk 0:02:58]} 2. e4 {[%clk 0:02:58]}  Bb7 {[%clk 0:02:58]} 3. Nc3 {[%clk 0:02:57]}  c5 {[%clk 0:02:59]} 4. d4 {[%clk 0:02:53]}  cxd4 {[%clk 0:02:59]} 5. Nxd4 {[%clk 0:02:53]}  e6 {[%clk 0:02:52]} 6. Ndb5 {[%clk 0:02:47]}  Nf6 {[%clk 0:02:45]} 7. Bf4 {[%clk 0:02:40]}  Na6 {[%clk 0:02:43]} 8. Bd6 {[%clk 0:02:29]}  Nxe4 {[%clk 0:02:05]} 9. Nxe4 {[%clk 0:02:26]}  Bxe4 {[%clk 0:02:06]} 10. Bxf8 {[%clk 0:02:20]}  Kxf8 {[%clk 0:02:07]} 11. Nd6 {[%clk 0:01:56]}  Nc5 {[%clk 0:02:07]} 12. b4 {[%clk 0:01:44]}  Qf6 {[%clk 0:02:06]} 13. bxc5 {[%clk 0:01:42]}  Qc3+ {[%clk 0:02:06]} 14. Ke2 {[%clk 0:01:38]}  Bxc2 {[%clk 0:02:06]} 15. Qd2 {[%clk 0:01:04]}  Qxa1 {[%clk 0:01:45]} 16. Qxc2 {[%clk 0:01:03]}  Qe5+ {[%clk 0:01:46]} 17. Qe4 {[%clk 0:00:45]}  Qxe4+ {[%clk 0:01:46]} 18. Nxe4 {[%clk 0:00:46]}  f5 {[%clk 0:01:46]} 19. Nd2 {[%clk 0:00:37]}  bxc5 {[%clk 0:01:46]} 20. Kd3 {[%clk 0:00:35]}  d5 {[%clk 0:01:45]} 21. f4 {[%clk 0:00:34]}  Ke7 {[%clk 0:01:45]} 22. Be2 {[%clk 0:00:34]}  Rhb8 {[%clk 0:01:45]} 23. Nf3 {[%clk 0:00:33]}  Rb2 {[%clk 0:01:44]} 24. Ne5 {[%clk 0:00:32]}  Kd6 {[%clk 0:01:41]} 25. Bf3 {[%clk 0:00:28]}  Rab8 {[%clk 0:01:37]} 26. Nf7+ {[%clk 0:00:11]}  Ke7 {[%clk 0:01:32]} 27. Ne5 {[%clk 0:00:11]}  R8b6 {[%clk 0:01:33]} 28. Re1 {[%clk 0:00:07]}  Rxa2 {[%clk 0:01:31]} 29. Kc3 {[%clk 0:00:06]}  Rba6 {[%clk 0:01:26]} 30. Bxd5 {[%clk 0:00:00]}  exd5 {[%clk 0:01:25]} 0-1


[Site "https://www.chess.com"]